bitfinex/quotes_SOLUSD_20240712
["timestamp","ask_amount","ask_price","bid_price","bid_amount"]
[1720795055306,1.44162376,138.61,138.53,20.0]
[1720795055506,7.2142,138.62,138.58,7.2158]
[1720795055807,1.44162376,138.64,138.62,7.2139]
[1720795055994,37.2139,138.63,138.58,7.2159]
[1720795056199,37.2139,138.63,138.59,20.0]
[1720795056388,30.0,138.63,138.59,27.2154]
[1720795056589,30.0,138.63,138.6,7.2146]
[1720795056789,30.0,138.63,138.61,7.2141]
[1720795056999,16.1057,138.69,138.6,7.2148]
[1720795057000,7.2127,138.65,138.6,7.2148]
[1720795057589,7.2127,138.65,138.59,20.0]
[1720795057590,1.44162376,138.64,138.59,20.0]
[1720795057800,8.65522376,138.63,138.57,20.0]
[1720795058007,7.2136,138.63,138.59,7.2152]
[1720795058211,7.2131,138.64,138.6,20.0]
[1720795058801,7.2131,138.64,138.6,27.2148]
[1720795058986,7.2124,138.65,138.6,27.2148]
[1720795059407,7.2129,138.64,138.6,27.2148]
[1720795059597,7.2135,138.63,138.6,20.0]
[1720795059796,7.2129,138.64,138.6,27.2148]
[1720795060210,7.2125,138.65,138.6,27.2148]
[1720795060413,7.2131,138.64,138.6,27.2148]
[1720795060593,7.2143,138.62,138.6,20.0]
[1720795060794,7.2151,138.6,138.56,16.344]
[1720795061517,7.2151,138.6,138.56,23.561]
[1720795061826,7.2146,138.61,138.57,7.2164]
[1720795062005,7.2141,138.62,138.57,7.2164]
[1720795062327,1.44162376,138.61,138.58,7.2159]
[1720795062700,7.2134,138.63,138.59,7.2153]
[1720795062918,1.44162376,138.62,138.58,7.2158]
[1720795063098,8.65562376,138.62,138.58,7.2158]
[1720795063502,1.44162376,138.62,138.58,7.2158]
[1720795063818,8.65562376,138.62,138.58,7.2158]
[1720795064520,7.2136,138.63,138.59,7.2154]
[1720795064923,8.65552376,138.62,138.58,7.2159]
[1720795065110,1.44162376,138.61,138.56,16.344]
[1720795065422,1.44162376,138.61,138.57,20.0]
[1720795065717,46.44162376,138.62,138.57,20.0]
[1720795065925,7.2151,138.6,138.56,7.2167]
[1720795066227,7.2151,138.6,138.57,20.0]
[1720795066533,46.44162376,138.59,138.52,396.5375]
[1720795066824,7.2181,138.54,138.48,397.0015]
[1720795067021,1.44162376,138.53,138.48,397.0015]
[1720795067402,1.44162376,138.53,138.5,7.2198]
[1720795068119,8.66022376,138.53,138.49,7.2204]
[1720795068319,1.44162376,138.53,138.49,7.2204]
[1720795069127,1.44162376,138.53,138.48,380.7]
[1720795069726,7.2178,138.55,138.5,7.2198]
[1720795070028,46.44162376,138.54,138.5,7.2198]
[1720795070410,53.65982376,138.54,138.5,7.2198]
[1720795070604,53.65982376,138.54,138.5,387.9198]
[1720795071325,1.44162376,138.56,138.5,380.7]
[1720795071922,7.2179,138.55,138.5,387.92]
[1720795072110,1.44162376,138.54,138.5,387.92]
[1720795072310,8.65972376,138.54,138.5,387.92]
[1720795072616,7.2181,138.54,138.5,387.92]
[1720795072816,8.66022376,138.53,138.5,380.7]
[1720795073225,7.2193,138.52,138.5,380.7]
[1720795073408,7.2184,138.54,138.5,380.7]
[1720795073610,7.2186,138.53,138.5,380.7]
[1720795074531,7.2183,138.54,138.5,387.9201]
[1720795074729,7.2178,138.55,138.5,387.9201]
[1720795074909,8.65972376,138.54,138.5,387.9201]
[1720795075530,7.2188,138.53,138.5,380.7]
[1720795075709,7.2196,138.51,138.5,380.7]
[1720795076527,7.2193,138.52,138.5,380.7]
[1720795077229,8.65982376,138.54,138.5,387.9202]
[1720795077524,1.44162376,138.53,138.5,387.9202]
[1720795078026,8.66042376,138.53,138.5,380.7]
[1720795078232,7.2196,138.51,138.5,380.7]
[1720795078426,1.44162376,138.55,138.5,380.7]
[1720795078622,1.44162376,138.54,138.5,380.7]
[1720795079532,7.2187,138.53,138.5,380.7]
[1720795080229,8.66062376,138.53,138.5,380.7]
[1720795080617,7.2193,138.52,138.5,380.7]
[1720795080818,7.2196,138.51,138.5,380.7]
[1720795081024,1.44162376,138.53,138.5,380.7]
[1720795081347,7.2193,138.52,138.5,380.7]
[1720795081513,7.2196,138.51,138.5,380.7]
[1720795081832,7.2191,138.52,138.5,380.7]
[1720795082630,7.2196,138.51,138.5,380.7]
[1720795083133,7.2207,138.49,138.45,7.2227]
[1720795083330,7.2207,138.49,138.42,6.042]
[1720795083331,8.66292376,138.48,138.44,7.2232]
[1720795083539,8.66292376,138.48,138.41,15.47]
[1720795083833,7.2218,138.47,138.43,7.2234]
[1720795084032,1.44162376,138.46,138.43,7.2234]
[1720795084439,7.223,138.45,138.41,15.47]
[1720795084620,7.223,138.45,138.38,6.3183]
[1720795084621,7.223,138.45,138.39,1.07460401]
[1720795084954,8.66392376,138.46,138.41,7.2244]
[1720795085237,8.66452376,138.45,138.41,7.2244]
[1720795085440,7.2233,138.44,138.4,7.2252]
[1720795085909,7.2228,138.45,138.4,7.2252]
[1720795086117,7.2224,138.46,138.41,7.2248]
[1720795086317,1.44162376,138.45,138.41,7.2248]
[1720795087036,26.1422,138.5,138.42,1.44447928]
[1720795087037,1.44162376,138.47,138.42,1.44447928]
[1720795087242,1.44162376,138.47,138.38,6.3183]
[1720795087243,7.2227,138.46,138.41,7.2248]
[1720795087427,8.66452376,138.45,138.4,8.6695752]
[1720795087618,1.44162376,138.44,138.41,20.0]
[1720795087820,7.2229,138.45,138.41,27.2247]
[1720795088145,7.2224,138.46,138.41,27.2247]
[1720795088448,1.44162376,138.45,138.41,27.2247]
[1720795088837,8.66462376,138.45,138.41,27.2247]
[1720795089149,1.44162376,138.45,138.41,27.2247]
[1720795089328,8.66462376,138.45,138.41,20.0]
[1720795089527,8.66462376,138.45,138.41,27.2249]
[1720795090530,7.2233,138.44,138.41,20.0]
[1720795091348,7.2229,138.45,138.41,20.0]
[1720795092644,8.66502376,138.44,138.41,20.0]
[1720795092844,7.2234,138.44,138.4,20.0]
[1720795093146,7.2234,138.44,138.4,27.2254]
[1720795093853,7.2229,138.45,138.4,27.2254]
[1720795094141,8.66352376,138.47,138.4,20.0]
[1720795094342,1.44162376,138.47,138.41,7.2246]
[1720795094554,7.2227,138.46,138.41,7.2246]
[1720795094727,1.44162376,138.45,138.41,7.2246]
[1720795095134,8.66402376,138.46,138.42,8.36515116]
[1720795095342,7.2224,138.46,138.4,1.14105116]
[1720795095548,1.44162376,138.45,138.42,7.224]
[1720795095725,8.66442376,138.45,138.41,7.2246]
[1720795096219,7.2233,138.44,138.4,7.2252]
[1720795096437,7.2233,138.44,138.41,20.0]
[1720795097446,7.2229,138.45,138.41,27.2248]
[1720795097748,7.2224,138.46,138.42,7.2241]
[1720795098041,7.2223,138.46,138.42,7.2241]
[1720795098242,8.66342376,138.47,138.43,7.2237]
[1720795100147,1.44162376,138.49,138.41,20.0]
[1720795100350,7.2218,138.47,138.43,7.2235]
[1720795101131,7.2218,138.47,138.42,7.2241]
[1720795101330,1.44162376,138.48,138.42,7.2241]
[1720795101331,7.2223,138.46,138.43,0.64910428]
[1720795101936,7.2236,138.44,138.42,20.0]
[1720795102253,1.44162376,138.45,138.42,20.0]
[1720795102254,8.66452376,138.45,138.42,20.0]
[1720795102554,7.2229,138.45,138.41,7.2248]
[1720795102738,7.2229,138.45,138.42,20.0]
[1720795102938,8.66502376,138.44,138.42,20.0]
[1720795103235,7.223,138.45,138.42,20.0]
[1720795103430,7.223,138.45,138.37,23.69067214]
[1720795103431,1.44162376,138.44,138.41,7.2248]
[1720795103649,8.66502376,138.44,138.42,20.0]
[1720795104026,1.44162376,138.48,138.42,27.2238]
[1720795104434,1.44162376,138.48,138.42,20.0]
[1720795104632,1.44162376,138.48,138.42,7.224]
[1720795104633,7.2223,138.46,138.42,7.224]
[1720795105029,7.2219,138.47,138.43,7.2238]
[1720795105232,8.66352376,138.47,138.43,7.2238]
[1720795106059,7.2228,138.45,138.41,7.2246]
[1720795106234,7.2228,138.45,138.42,20.0]
[1720795106630,7.2225,138.46,138.42,27.2243]
[1720795106964,7.2225,138.46,138.43,0.9866676]
[1720795107131,7.2225,138.46,138.42,27.2243]
[1720795108037,7.2228,138.45,138.42,20.0]
[1720795108352,7.2228,138.45,138.41,7.2246]
[1720795108353,8.66512376,138.44,138.4,7.2253]
[1720795108733,8.66512376,138.44,138.37,23.69067214]
[1720795108734,1.44162376,138.44,138.37,23.69067214]
[1720795108937,7.2245,138.42,138.37,7.48267214]
[1720795109135,7.2245,138.42,138.38,7.2262]
[1720795109433,7.2245,138.42,138.37,7.48267214]
[1720795109434,7.224,138.43,138.39,7.2259]
[1720795109639,8.66502376,138.44,138.4,7.2254]
[1720795111280,7.2239,138.43,138.39,7.2257]
[1720795111440,7.2249,138.41,138.37,14.70947214]
[1720795111651,8.66622376,138.42,138.37,14.70947214]
[1720795112348,8.66622376,138.42,138.37,7.48267214]
[1720795112349,1.44162376,138.42,138.37,7.48267214]
[1720795112658,1.44162376,138.42,138.39,7.2256]
[1720795113258,8.66602376,138.42,138.38,7.2263]
[1720795114763,8.66602376,138.42,138.37,7.48267214]
[1720795114764,1.44162376,138.42,138.37,7.48267214]
[1720795114949,8.66582376,138.43,138.39,7.2258]
[1720795115154,8.66552376,138.43,138.39,7.2257]
[1720795115354,1.44162376,138.42,138.39,7.2257]
[1720795115573,1.44162376,138.42,138.39,7.2259]
[1720795115876,1.44162376,138.43,138.4,7.2253]
[1720795116943,1.44162376,138.43,138.3,15.5548]
[1720795116944,40.0,138.41,138.3,15.5548]
[1720795117255,40.0,138.41,138.33,7.2287]
[1720795117256,7.2266,138.38,138.33,7.2287]
[1720795117450,7.2271,138.37,138.33,7.2287]
[1720795118269,7.2266,138.38,138.3,15.5548]
[1720795118471,1.44162376,138.37,138.31,0.58620282]
[1720795118659,1.44162376,138.4,138.31,0.58620282]
[1720795118865,8.66722376,138.4,138.31,45.58620282]
[1720795119063,7.2256,138.4,138.32,20.0]
[1720795120751,30.0,138.41,138.34,21.72]
[1720795120972,21.4958,138.51,138.38,22.1377]
[1720795120973,7.2211,138.49,138.38,22.1377]
[1720795121276,1.44162376,138.5,138.39,21.44434577]
[1720795121458,7.2208,138.49,138.4,45.0]
[1720795121667,7.2208,138.49,138.41,21.44413706]
[1720795121963,8.66302376,138.48,138.41,21.44413706]
[1720795122168,1.44162376,138.48,138.41,21.44413706]
[1720795122384,7.2221,138.47,138.41,21.44413706]
[1720795122681,7.2213,138.48,138.41,21.44413706]
[1720795122884,1.44162376,138.47,138.41,21.44413706]
[1720795123569,8.66352376,138.47,138.41,21.44413706]
[1720795123878,8.66352376,138.47,138.42,1.44459976]
[1720795124053,8.66352376,138.47,138.4,1.44467525]
[1720795125281,7.2226,138.46,138.4,1.44467525]
[1720795126071,1.44162376,138.47,138.4,1.44467525]
[1720795126282,7.2212,138.48,138.4,1.44467525]
[1720795126579,8.66342376,138.47,138.4,1.44467525]
[1720795126777,1.44162376,138.47,138.4,1.44467525]
[1720795126987,7.2214,138.48,138.4,1.44467525]
[1720795127169,1.44162376,138.47,138.4,1.44467525]
[1720795127482,21.4958,138.51,138.4,1.44467525]
[1720795127697,21.4958,138.51,138.4,79.82467525]
[1720795127698,1.44162376,138.5,138.4,79.82467525]
[1720795127985,8.66182376,138.5,138.41,20.0]
[1720795128185,8.66182376,138.5,138.42,1.44427833]
[1720795128478,8.66182376,138.5,138.43,1.44417399]
[1720795128981,7.2209,138.49,138.43,1.44417399]
[1720795129184,8.66292376,138.48,138.43,1.44417399]
[1720795129556,1.44162376,138.48,138.43,1.44417399]
[1720795130357,21.4958,138.51,138.43,1.44417399]
[1720795130358,1.44162376,138.5,138.43,1.44417399]
[1720795131284,8.66212376,138.5,138.43,1.44417399]
[1720795131460,7.2212,138.49,138.43,1.44417399]
[1720795132191,7.2212,138.48,138.43,1.44417399]
[1720795132663,7.2209,138.49,138.43,1.44417399]
[1720795132862,7.2212,138.48,138.43,1.44417399]
[1720795133984,7.2212,138.48,138.39,20.0]
[1720795134178,7.2212,138.48,138.4,45.0]
[1720795134381,7.2212,138.48,138.41,20.0]
[1720795134769,1.44162376,138.47,138.41,20.0]
[1720795135091,7.2208,138.49,138.41,20.0]
[1720795135292,1.44162376,138.48,138.39,20.0]
[1720795135595,8.66282376,138.48,138.4,45.0]
[1720795135798,8.66282376,138.48,138.41,20.0]
[1720795135968,8.66282376,138.48,138.42,1.44445423]
[1720795136276,1.44162376,138.48,138.42,1.44445423]
[1720795136787,1.44162376,138.48,138.39,20.0]
[1720795137302,1.44162376,138.48,138.4,1.44135935]
[1720795137479,1.44162376,138.49,138.4,1.44135935]
[1720795137790,1.44162376,138.49,138.4,79.82135935]
[1720795138091,1.44162376,138.5,138.42,16.5408]
[1720795138396,1.44162376,138.54,138.44,6.0124]
[1720795138688,1.44162376,138.54,138.45,66.44117546]
[1720795138895,1.44162376,138.54,138.46,1.44107164]
[1720795139397,8.66002376,138.54,138.46,1.44107164]
[1720795140910,7.2187,138.53,138.46,1.44107164]
[1720795141394,8.65982376,138.54,138.46,1.44107164]
[1720795141796,1.44162376,138.54,138.47,16.3044]
[1720795141979,1.44162376,138.54,138.48,21.44086351]
[1720795142290,8.65902376,138.56,138.49,1.4407598]
[1720795142499,52.2176,138.55,138.49,1.4407598]
[1720795142682,1.44162376,138.54,138.49,1.4407598]
[1720795143396,8.65972376,138.54,138.49,1.4407598]
[1720795144376,1.44162376,138.54,138.49,1.4407598]
[1720795144678,8.66002376,138.54,138.49,1.4407598]
[1720795144873,1.44162376,138.54,138.49,1.4407598]
[1720795146611,1.44162376,138.57,138.49,1.4407598]
[1720795147107,1.44162376,138.57,138.5,6.0012]
[1720795147290,1.44162376,138.57,138.51,21.44348241]
[1720795147482,1.44162376,138.57,138.52,1.44348032]
[1720795147890,8.65822376,138.57,138.52,1.44348032]
[1720795148503,7.2166,138.57,138.52,1.44348032]
[1720795148703,1.44162376,138.58,138.52,1.44348032]
[1720795148704,8.65782376,138.58,138.52,1.44348032]
[1720795149706,1.44162376,138.6,138.53,15.6179]
[1720795149898,6.6209,138.64,138.54,21.44309496]
[1720795150110,6.6209,138.64,138.55,1.44301089]
[1720795150111,1.44162376,138.63,138.55,1.44301089]
[1720795150406,8.65512376,138.63,138.56,6.118]
[1720795150601,8.65512376,138.63,138.57,21.44280299]
[1720795150801,8.65512376,138.63,138.58,1.44269925]
[1720795151002,7.214,138.62,138.58,1.44269925]
[1720795151631,7.2136,138.63,138.58,1.44269925]
[1720795155860,7.2139,138.62,138.58,1.44269925]
[1720795156075,1.44162376,138.62,138.57,20.0]
[1720795156359,7.2142,138.62,138.57,20.0]
[1720795156769,1.44162376,138.61,138.57,21.00551651]
[1720795156940,7.2146,138.61,138.58,1.00544426]
[1720795157144,7.2141,138.62,138.58,20.0]
[1720795157346,1.44162376,138.61,138.55,1.00544426]
[1720795158571,1.44162376,138.64,138.55,1.00544426]
[1720795158865,8.65452376,138.64,138.55,1.00544426]
[1720795159471,1.44162376,138.63,138.55,1.00544426]
[1720795159773,8.65522376,138.63,138.55,1.00544426]
[1720795160079,8.65512376,138.63,138.55,1.00544426]
[1720795160568,8.65512376,138.63,138.56,1.44294425]
[1720795161365,1.44162376,138.63,138.56,1.44294425]
[1720795161546,7.2139,138.63,138.55,1.4429443]
[1720795161747,1.44162376,138.62,138.55,1.4429443]
[1720795162246,7.2139,138.63,138.55,1.4429443]
[1720795162448,1.44162376,138.62,138.55,1.4429443]
[1720795162874,1.44162376,138.63,138.55,1.4429443]
[1720795163177,1.44162376,138.63,138.55,46.4429443]
[1720795163460,1.44162376,138.65,138.56,20.0]
[1720795163662,1.44162376,138.64,138.57,1.44273603]
[1720795163865,1.44162376,138.64,138.58,1.44263192]
[1720795164167,8.65482376,138.64,138.58,1.44263192]
[1720795164543,45.0,138.63,138.57,1.44263222]
[1720795164743,8.65562376,138.62,138.57,1.44263222]
[1720795164950,1.44162376,138.62,138.58,1.44305861]
[1720795165153,1.44162376,138.62,138.54,20.0]
[1720795165154,1.44162376,138.62,138.55,1.44297866]
[1720795165465,1.44162376,138.62,138.53,15.6179]
[1720795165767,7.2147,138.61,138.54,1.44327651]
[1720795165982,1.44162376,138.6,138.54,1.44327651]
[1720795167258,1.44162376,138.6,138.54,21.44327651]
[1720795168573,1.44162376,138.61,138.54,21.44327651]
[1720795169572,1.44162376,138.62,138.54,21.44327651]
[1720795169881,1.44162376,138.62,138.54,20.0]
[1720795170255,7.2145,138.61,138.54,20.0]
[1720795170454,1.44162376,138.6,138.54,20.0]
[1720795171571,8.65662376,138.6,138.54,20.0]
[1720795171746,1.44162376,138.59,138.54,20.0]
[1720795172262,1.44162376,138.62,138.53,15.6179]
[1720795172459,8.65592376,138.62,138.53,15.6179]
[1720795172666,52.2145,138.61,138.53,15.6179]
[1720795172865,8.65552376,138.62,138.53,15.6179]
[1720795173060,45.0,138.61,138.53,15.6179]
[1720795173260,1.44162376,138.6,138.53,15.6179]
[1720795173475,1.44162376,138.61,138.54,20.0]
[1720795173675,1.44162376,138.61,138.55,0.45565328]
[1720795174175,1.44162376,138.61,138.55,1.42037167]
[1720795174373,1.44162376,138.6,138.55,1.42037167]
[1720795175892,8.65662376,138.6,138.55,1.42037167]
[1720795176283,1.44162376,138.6,138.55,1.42037167]
[1720795176667,1.44162376,138.61,138.55,1.42037167]
[1720795176873,52.214,138.62,138.55,1.42037167]
[1720795176874,1.44162376,138.6,138.55,1.42037167]
[1720795177174,52.214,138.62,138.55,1.42037167]
[1720795177371,52.214,138.62,138.54,20.0]
[1720795177669,45.0,138.62,138.54,20.0]
[1720795178073,1.44162376,138.61,138.54,20.0]
[1720795178371,1.44162376,138.63,138.54,20.0]
[1720795178698,16.7,138.62,138.57,16.7]
[1720795178881,1.44162376,138.61,138.57,16.7]
[1720795179085,1.44162376,138.62,138.57,16.7]
[1720795179281,1.44162376,138.62,138.58,16.7]
[1720795179884,18.14162376,138.62,138.59,20.0]
[1720795180190,18.14162376,138.62,138.57,16.7]
[1720795180493,18.14162376,138.62,138.58,36.7]
[1720795181604,1.44162376,138.62,138.58,36.7]
[1720795181775,18.14162376,138.63,138.58,36.7]
[1720795182491,25.35502376,138.63,138.58,36.7]
[1720795183904,23.914,138.62,138.58,20.0]
[1720795184080,18.14162376,138.61,138.58,20.0]
[1720795184279,18.14162376,138.61,138.57,20.0]
[1720795184695,1.44162376,138.6,138.53,15.6179]
[1720795184889,18.14162376,138.6,138.55,16.7]
[1720795185978,1.44162376,138.6,138.56,20.0]
[1720795186178,18.14162376,138.61,138.56,36.7]
[1720795186385,1.44162376,138.6,138.56,36.7]
[1720795186796,18.14162376,138.61,138.56,36.7]
[1720795186993,1.44162376,138.6,138.56,20.0]
[1720795187306,1.44162376,138.61,138.56,16.7]
[1720795187600,18.14162376,138.62,138.57,36.7]
[1720795187810,25.35572376,138.62,138.57,36.7]
[1720795187976,16.7,138.61,138.57,20.0]
[1720795189505,1.44162376,138.6,138.57,20.0]
[1720795189997,18.14162376,138.6,138.57,20.0]
[1720795190200,18.14162376,138.6,138.56,20.0]
[1720795191324,25.35672376,138.6,138.56,20.0]
[1720795191605,25.35672376,138.6,138.54,36.7]
[1720795191810,25.35672376,138.6,138.54,20.0]
[1720795192015,25.35672376,138.6,138.54,36.7]
[1720795192791,25.35672376,138.6,138.55,16.7]
[1720795193091,25.35672376,138.6,138.56,20.0]
[1720795193294,18.14162376,138.6,138.56,20.0]
[1720795193494,16.28945644,138.59,138.56,20.0]
[1720795193691,1.44162376,138.58,138.56,20.0]
[1720795193888,16.7,138.58,138.55,20.0]
[1720795194106,16.7,138.6,138.55,16.7]
[1720795194411,17.72540938,138.59,138.56,20.0]
[1720795194615,1.44162376,138.59,138.56,20.0]
[1720795194906,16.28134507,138.58,138.56,20.0]
[1720795195113,18.14162376,138.59,138.56,20.0]
[1720795195319,16.7,138.58,138.55,20.0]
[1720795195616,1.44162376,138.57,138.54,20.0]
[1720795195808,23.9157,138.59,138.54,36.7]
[1720795196115,32.98295835,138.58,138.54,20.0]
[1720795196409,16.7,138.58,138.54,21.4434372]
[1720795196988,23.9146,138.61,138.55,18.14329424]
[1720795197291,1.44162376,138.6,138.55,18.14329424]
[1720795198521,1.44162376,138.6,138.56,20.0]
[1720795201098,8.65542376,138.63,138.57,1.44308592]
[1720795201296,16.7,138.62,138.57,1.44308592]
[1720795201607,1.44162376,138.61,138.57,18.14308592]
[1720795202107,1.44162376,138.61,138.57,1.44308592]
[1720795202322,18.14162376,138.61,138.57,1.44308592]
[1720795202820,8.65672376,138.6,138.56,20.0]
[1720795202996,16.7,138.58,138.56,20.0]
[1720795203201,39.86162376,138.57,138.49,16.057]
[1720795203425,7.22,138.51,138.45,22.6681]
[1720795203732,34.4117,138.55,138.45,16.057]
[1720795203733,1.44162376,138.5,138.45,16.057]
[1720795203906,1.44162376,138.53,138.45,16.057]
[1720795204226,18.14162376,138.53,138.48,16.7]
[1720795204405,7.2193,138.52,138.45,16.057]
[1720795204625,18.14162376,138.51,138.46,16.7]
[1720795205430,18.14162376,138.51,138.45,32.757]
[1720795206135,16.7,138.5,138.45,16.057]
[1720795206336,18.14162376,138.49,138.45,16.057]
[1720795206829,8.66022376,138.54,138.46,16.7]
[1720795207036,16.7,138.52,138.47,16.7]
[1720795207322,18.14162376,138.52,138.47,16.7]
[1720795207530,16.7,138.52,138.47,16.7]
[1720795208101,16.7,138.51,138.46,17.24347441]
[1720795208301,16.7,138.51,138.47,20.0]
[1720795208729,16.7,138.52,138.48,0.54431211]
[1720795208938,16.7,138.53,138.48,17.24431211]
[1720795209106,16.7,138.53,138.49,20.0]
[1720795209302,30.0,138.5,138.49,20.0]
[1720795209714,30.0,138.5,138.48,20.0]
[1720795210010,30.0,138.5,138.47,20.0]
[1720795210328,31.44162376,138.5,138.46,20.0]
[1720795211032,30.0,138.5,138.46,36.7]
[1720795211202,30.0,138.5,138.47,16.7]
[1720795211409,30.0,138.5,138.48,36.7]
[1720795211828,1.44162376,138.52,138.48,36.7]
[1720795212121,1.44162376,138.54,138.5,16.7]
[1720795212322,1.44162376,138.55,138.51,20.0]
[1720795212509,16.7,138.55,138.51,20.0]
[1720795212727,16.7,138.57,138.52,16.7]
[1720795212932,16.7,138.57,138.53,20.0]
[1720795213624,16.7,138.57,138.54,1.44161261]
[1720795213809,16.7,138.57,138.53,20.0]
[1720795214527,7.2157,138.59,138.53,20.0]
[1720795214734,7.216,138.58,138.52,20.0]
[1720795214924,1.44162376,138.57,138.52,20.0]
[1720795215305,8.65812376,138.57,138.52,20.0]
[1720795215526,1.44162376,138.57,138.52,20.0]
[1720795215717,7.2168,138.57,138.52,20.0]
[1720795216030,1.44162376,138.56,138.52,20.0]
[1720795216931,1.44162376,138.57,138.52,20.0]
[1720795217521,8.65822376,138.57,138.52,20.0]
[1720795218839,1.44162376,138.57,138.52,20.0]
[1720795220042,1.44162376,138.58,138.53,0.67513588]
[1720795220544,1.44162376,138.58,138.53,1.44341889]
[1720795221112,8.65722376,138.59,138.53,1.44341889]
[1720795221359,7.2166,138.57,138.52,20.0]
[1720795221519,1.44162376,138.56,138.52,20.0]
[1720795221719,1.44162376,138.57,138.52,20.0]
[1720795222142,8.65842376,138.57,138.52,20.0]
[1720795222641,1.44162376,138.56,138.52,20.0]
[1720795222844,1.44162376,138.56,138.52,20.39061494]
[1720795223142,1.44162376,138.59,138.52,20.39061494]
[1720795223313,7.2162,138.58,138.52,20.39061494]
[1720795223515,46.44162376,138.57,138.52,20.39061494]
[1720795224048,1.44162376,138.57,138.52,20.39061494]
[1720795224345,7.2159,138.59,138.52,20.39061494]
[1720795224550,1.44162376,138.58,138.52,20.39061494]
[1720795224732,1.44162376,138.57,138.52,20.39061494]
[1720795225451,1.44162376,138.58,138.52,20.39061494]
[1720795225821,1.44162376,138.61,138.53,6.3337]
[1720795226022,8.65512376,138.63,138.55,15.2052]
[1720795226332,8.65512376,138.63,138.56,21.12112912]
[1720795227047,1.44162376,138.62,138.56,21.12112912]
[1720795228269,1.44162376,138.64,138.56,21.12112912]
[1720795228629,7.2135,138.63,138.56,21.12112912]
[1720795229142,7.2131,138.64,138.56,21.12112912]
[1720795229343,1.44162376,138.63,138.56,21.12112912]
[1720795229548,7.2125,138.65,138.56,21.12112912]
[1720795229839,1.44162376,138.64,138.56,21.12112912]
[1720795231244,7.2125,138.65,138.56,21.12112912]
[1720795231441,1.44162376,138.67,138.56,21.12112912]
[1720795231442,7.2118,138.66,138.57,6.5346]
[1720795231646,1.44162376,138.65,138.58,21.20927009]
[1720795231951,1.44162376,138.65,138.59,16.0225]
[1720795232150,8.65402376,138.65,138.6,21.209651]
[1720795232353,8.65402376,138.65,138.61,1.20956372]
[1720795232854,7.2129,138.64,138.61,1.20956372]
[1720795233239,7.2125,138.65,138.61,1.20956372]
[1720795234143,1.44162376,138.67,138.61,1.20956372]
[1720795234337,7.2116,138.67,138.61,1.20956372]
[1720795234537,18.13162376,138.66,138.61,17.89956372]
[1720795234851,18.13162376,138.66,138.62,20.0]
[1720795235251,8.65352376,138.66,138.62,36.69]
[1720795235443,1.44162376,138.67,138.63,1.20938922]
[1720795235642,18.13162376,138.67,138.63,1.20938922]
[1720795235952,7.211,138.68,138.62,36.69]
[1720795236152,18.13162376,138.67,138.62,20.0]
[1720795236334,16.69,138.66,138.61,16.69]
[1720795236535,7.2115,138.67,138.62,20.0]
[1720795236732,23.9015,138.67,138.62,20.0]
[1720795236932,1.44162376,138.66,138.62,20.0]
[1720795237137,49.7458,138.69,138.59,16.0225]
[1720795237138,16.69,138.64,138.6,20.0]
[1720795237358,16.69,138.65,138.6,36.69]
[1720795237553,7.2119,138.66,138.6,36.69]
[1720795237755,16.4926,138.71,138.6,20.0]
[1720795237960,16.4926,138.71,138.62,16.69]
[1720795237961,16.69,138.68,138.62,16.69]
[1720795238157,23.9014,138.67,138.63,20.0]
[1720795238365,16.69,138.66,138.63,20.0]
[1720795238890,23.9014,138.67,138.64,1.44239423]
[1720795239242,23.9014,138.67,138.63,1.44239423]
[1720795239547,16.69,138.65,138.62,21.4425275]
[1720795239747,16.69,138.65,138.62,20.0]
[1720795240256,16.69,138.65,138.61,1.44258294]
[1720795240851,7.2134,138.64,138.59,16.0225]
[1720795241047,16.69,138.63,138.6,0.56027584]